{"text_format":"1","workbook":"xlsx","n_sheets":2,"sheets":["テンプレート","MML"],"not_rendered":{"charts":0,"images":0,"macros":1,"external_links":0,"defined_names":0,"comments":0,"pivot_tables":0},"unopened":[],"bounds":{"document_bytes":16777216,"sheet_cells":100000,"rows_first":2000,"rows_last":500,"rows_between":2000,"halvings":0,"cell_chars":16384,"cell_head_chars":4096},"cells_cut":0,"cells_raw":0,"read":"whole","date_system":"1900"}

{"sheet":"テンプレート","index":0,"n_rows":54,"n_cols":7,"rows_kept":54,"cut":false,"hidden":false,"merged":[]}
[null,2,{"$f":"\"イメージサイズ\"","v":"イメージサイズ"}]
[null,0,{"$f":"\"フォームサイズ \"","v":"フォームサイズ "}]
[null,{"$f":"B2+1","v":1}]
[null,{"$f":"B3+1","v":2}]
[null,3]
[null,4]
[null,5]
[null,6]
[null,7]
[null,8]
[null,9]
[null,10]
[null,11]
[null,12]
[null,13]
[null,14]
[null,15]
[null,16]
[null,17]
[null,18]
[null,19]
[null,20]
[null,21]
[null,22]
[null,23]
[null,24]
[null,25]
[null,26]
[null,27]
[null,28]
[null,29]
[null,30]
[null,31]
[null,32]
[null,33]
[null,34]
[null,35]
[null,36]
[null,37]
[null,38]
[null,39]
[null,40]
[null,41]
[null,42]
[null,43]
[null,44]
[null,45,null,null,null,null,"ドー（雌鹿）は鹿、メスの鹿"]
[null,46,null,null,null,null,"レイ（日差し）はおひさまからふりそそぐもの"]
[null,47,null,null,null,null,"ミー（わたし）は自分のことを呼ぶ代名詞"]
[null,48,null,null,null,null,"ファー（遠く）はどこまでもどこまでも走ってゆく先"]
[null,49,null,null,null,null,"ソー（縫い物）は針で糸をひくこと"]
[null,50,null,null,null,null,"ラーはソの次の音符"]
[null,null,null,null,null,null,"ティー（お茶）はジャムとパンに合わせる飲みもの"]
[null,null,null,null,null,null,"そしてまたドに戻るっていくの"]

{"sheet":"MML","index":1,"n_rows":0,"n_cols":0,"rows_kept":0,"cut":false,"hidden":false,"merged":[]}